fUST/lending_fUST_20241230
["ID","MTS","AMOUNT","RATE_DAILY","PERIOD"]
[347063945,1735488650036,-152.0,0.00019909,2]
[347063947,1735488650046,-152.0,0.00019909,2]
[347063949,1735488650055,-155.0,0.00019951,2]
[347063951,1735488650064,-155.0,0.00019951,2]
[347063953,1735488650074,-155.0,0.00019951,2]
[347063955,1735488650083,-155.0,0.00019951,2]
[347063957,1735488650093,-155.0,0.00019951,2]
[347063959,1735488650102,-155.0,0.00019951,2]
[347063961,1735488650111,-155.0,0.00019951,2]
[347063963,1735488650120,-155.0,0.00019951,2]
[347063965,1735488650132,-166.854489,0.00019993,2]
[347063967,1735488650141,-208.307159,0.00019999,2]
[347063969,1735488650150,-208.307159,0.00019999,2]
[347063971,1735488650160,-151.0,0.00019999,2]
[347063973,1735488650170,-151.0,0.00019999,2]
[347063975,1735488650179,-151.0,0.00019999,2]
[347063977,1735488650188,-629.394796,0.00019999,2]
[347063979,1735488650198,-630.573369,0.00019999,2]
[347063982,1735488650207,-629.394796,0.00019999,2]
[347063984,1735488650217,-374.405708,0.00019999,2]
[347063986,1735488650227,-374.405708,0.00019999,2]
[347063988,1735488650238,-991.727237,0.00019999,2]
[347063990,1735488650248,-991.727237,0.00019999,2]
[347063991,1735488650257,-8731.60819841,0.0002,3]
[347063993,1735488650267,-2145.24909166,0.0002,30]
[347063995,1735488650276,-32529.0,0.0002,3]
[347063997,1735488650285,-1222.1084025,0.0002,3]
[347063999,1735488650294,-7923.03549997,0.0002,20]
[347064007,1735488650362,-1707.93579389,0.0002,3]
[347064009,1735488650371,-1707.93579389,0.0002,3]
[347064011,1735488650381,-1707.93579389,0.0002,3]
[347064014,1735488650390,-1707.93579389,0.0002,3]
[347064015,1735488650399,-1707.93579389,0.0002,3]
[347064018,1735488650408,-1707.93579389,0.0002,3]
[347064019,1735488650418,-1707.93579389,0.0002,3]
[347064021,1735488650427,-1707.93579389,0.0002,3]
[347064023,1735488650436,-1707.93579389,0.0002,3]
[347064025,1735488650445,-1707.93479389,0.0002,3]
[347064027,1735488650455,-1000.0,0.0002,20]
[347064029,1735488650465,-952.160103,0.0002,2]
[347064032,1735488650474,-952.160103,0.0002,2]
[347064033,1735488650483,-47300.0,0.0002,4]
[347064035,1735488650492,-151.0,0.0002,2]
[347064038,1735488650504,-379.876751,0.0002,2]
[347064039,1735488650515,-151.226711,0.0002,2]
[347064041,1735488650524,-379.876751,0.0002,2]
[347064043,1735488650533,-151.226711,0.0002,2]
[347064045,1735488650543,-151.0,0.0002,2]
[347064047,1735488650552,-170.507864,0.0002,2]
[347064049,1735488650561,-170.507864,0.0002,2]
[347064052,1735488650571,-151.0,0.0002,2]
[347064053,1735488650579,-211.31805,0.0002,2]
[347064055,1735488650589,-1000.0,0.0002,2]
[347064058,1735488650599,-606.289548,0.0002,2]
[347064060,1735488650608,-606.289548,0.0002,2]
[347064061,1735488650618,-277.030062,0.0002,2]
[347064063,1735488650628,-277.030062,0.0002,2]
[347064065,1735488650637,-151.0,0.0002,2]
[347064067,1735488650646,-151.0,0.0002,2]
[347064069,1735488650655,-151.0,0.0002,2]
[347064072,1735488650665,-480.132294,0.0002,2]
[347064073,1735488650674,-480.132294,0.0002,2]
[347064075,1735488650683,-326.0,0.0002,8]
[347064078,1735488650692,-151.0,0.0002,2]
[347064080,1735488650702,-629.394796,0.0002,2]
[347064082,1735488650711,-629.394796,0.0002,2]
[347064084,1735488650720,-991.727237,0.0002,2]
[347064086,1735488650729,-620.358059,0.0002,2]
[347064088,1735488650738,-991.727237,0.0002,2]
[347064090,1735488650748,-620.358059,0.0002,2]
[347064092,1735488650757,-649.116537,0.0002,2]
[347064094,1735488650766,-649.116537,0.0002,2]
[347064096,1735488650776,-403.290456,0.0002,2]
[347064098,1735488650785,-403.290456,0.0002,2]
[347064100,1735488650794,-5164.75756255,0.0002,3]
[347064102,1735488650804,-5164.75756255,0.0002,3]
[347064104,1735488650815,-5164.75756255,0.0002,3]
[347064106,1735488650824,-1185.356867,0.0002,2]
[347064108,1735488650833,-151.0,0.0002,2]
[347064110,1735488650842,-1185.356867,0.0002,2]
[347064112,1735488650851,-151.0,0.0002,2]
[347064114,1735488650859,-151.0,0.0002,2]
[347064116,1735488650869,-413.007723,0.0002,2]
[347064118,1735488650877,-413.007723,0.0002,2]
[347064120,1735488650886,-151.0,0.0002,2]
[347064122,1735488650895,-200.580711,0.0002,2]
[347064124,1735488650904,-600.0,0.00020076,2]
[347064126,1735488650912,-1839.55854705,0.0002009,5]
[347064128,1735488650921,-4124.28162415,0.0002021,2]
[347064130,1735488650930,-179.8,0.0002027,2]
[347064132,1735488650938,-499.0,0.00020273,2]
[347064134,1735488650948,-755.00809927,0.00020285,2]
[347064136,1735488650956,-606.289548,0.00020292,2]
[347064138,1735488650966,-606.289548,0.00020292,2]
[347064140,1735488650975,-151.0,0.00020292,2]
[347064142,1735488650983,-151.0,0.00020292,2]
[347064144,1735488650992,-151.0,0.00020292,2]
[347064146,1735488651002,-480.132294,0.00020292,2]
[347064148,1735488651011,-480.132294,0.00020292,2]
[347064150,1735488651020,-208.307159,0.00020292,2]
[347064152,1735488651029,-208.307159,0.00020292,2]
[347064154,1735488651038,-151.0,0.00020292,2]
[347064156,1735488651047,-151.0,0.00020292,2]
[347064158,1735488651056,-630.573369,0.00020292,2]
[347064159,1735488651064,-630.573369,0.00020292,2]
[347064161,1735488651073,-374.405708,0.00020292,2]
[347064163,1735488651082,-374.405708,0.00020292,2]
[347064165,1735488651090,-649.116537,0.00020292,2]
[347064167,1735488651099,-649.116537,0.00020292,2]
[347064169,1735488651108,-5247.00172206,0.00020292,2]
[347064171,1735488651117,-5000.0,0.00020292,2]
[347064173,1735488651127,-5000.0,0.00020292,2]
[347064175,1735488651136,-5000.0,0.00020292,2]
[347064177,1735488651145,-5000.0,0.00020292,2]
[347064179,1735488651154,-5000.0,0.00020292,2]
[347064181,1735488651163,-5000.0,0.00020292,2]
[347064183,1735488651172,-5000.0,0.00020292,2]
[347064185,1735488651181,-5000.0,0.00020292,2]
[347064187,1735488651189,-5000.0,0.00020292,2]
[347064189,1735488651198,-153.0,0.00020365,2]
[347064192,1735488651207,-162.0,0.00020365,2]
[347064194,1735488651217,-400.0,0.00020447,2]
[347064196,1735488651227,-181.402237,0.00020521,2]
[347064198,1735488651236,-4536.132602,0.00020548,2]
[347064199,1735488651245,-6866.57624263,0.0002061,2]
[347064202,1735488651258,-181.402237,0.00020712,2]
[347064204,1735488651268,-654.99043951,0.00020786,2]
[347064206,1735488651277,-2000.0,0.000208,2]
[347064208,1735488651288,-566269.15221907,0.000208,30]
[347064232,1735488651510,-463.09964191,9.184e-05,2]
[347064234,1735488651520,-500.0,9.185e-05,2]
[347064236,1735488651530,-500.0,0.00011924,2]
[347064238,1735488651539,-500.0,0.00012198,2]
[347064240,1735488651549,-500.0,0.00013022,2]
[347064242,1735488651558,-361.83454409,0.00013296,2]
[347064244,1735488651568,-260.033233,0.00013699,2]
[347064246,1735488651577,-21499.43466859,0.000208,30]
[347064249,1735488651590,-1253.64929774,0.000208,30]
[347064259,1735488651678,-500.0,9.184e-05,2]
[347064262,1735488651695,-500.0,9.185e-05,2]
[347064264,1735488651705,-500.0,9.185e-05,2]
[347064266,1735488651714,-180.19446415,0.00012472,2]
[347064281,1735488651852,-319.80553585,0.00012472,2]
[347064283,1735488651862,-500.0,0.00012746,2]
[347064285,1735488651871,-4939.571529,0.000208,30]
[347064300,1735488652007,-500.0,9.183e-05,2]
[347064302,1735488652016,-500.0,9.183e-05,2]
[347064304,1735488652026,-500.0,9.184e-05,2]
[347064306,1735488652035,-500.0,9.184e-05,2]
[347064308,1735488652044,-500.0,9.185e-05,2]
[347064310,1735488652053,-500.0,9.185e-05,2]
[347064311,1735488652062,-575.20539,9.457e-05,2]
[347064312,1735488652071,-500.0,9.457e-05,2]
[347064313,1735488652080,-500.0,9.731e-05,2]
[347064314,1735488652090,-500.0,0.0001302,2]
[347064315,1735488652099,-500.0,0.00013294,2]
[347064316,1735488652108,-200.580711,0.00013699,2]
[347064317,1735488652118,-200.580711,0.00015,2]
[347064318,1735488652127,-500.0,0.00017793,2]
[347064319,1735488652136,-24834.54801464,0.000208,30]
[347064320,1735488652148,-1973.3,0.000208,30]
[347064321,1735488652189,-16204.79869,0.000208,30]
[347064322,1735488652200,-18299.81157923,0.000208,30]
[347064323,1735488652211,-23383.63999999,0.000208,30]
[347064324,1735488652222,-9423.9,0.000208,30]
[347067556,1735489583764,24900.0,8.185e-05,2]
[347067641,1735489832333,-300.0,9.18e-05,2]
[347067643,1735489832343,-500.0,9.18e-05,2]
[347067645,1735489832352,-500.0,9.18e-05,2]
[347067647,1735489832362,-504.12819711,9.18e-05,2]
[347067649,1735489832371,-500.0,9.18e-05,2]
[347067651,1735489832380,-500.0,9.181e-05,2]
[347067653,1735489832390,-500.0,9.181e-05,2]
[347067655,1735489832399,-500.0,9.181e-05,2]
[347067657,1735489832409,-500.0,9.181e-05,2]
[347067659,1735489832418,-500.0,9.181e-05,2]
[347067661,1735489832427,-505.88294915,9.181e-05,2]
[347067663,1735489832437,-500.0,9.181e-05,2]
[347067665,1735489832446,-500.0,9.181e-05,2]
[347067667,1735489832456,-479.21165843,9.181e-05,2]
[347067669,1735489832467,-20.78834157,9.181e-05,2]
[347067671,1735489832476,-500.0,9.181e-05,2]
[347067673,1735489832486,-27.75142143,9.181e-05,2]
[347067675,1735489832497,-472.24857857,9.181e-05,2]
[347067677,1735489832508,-500.0,9.181e-05,2]
[347067679,1735489832517,-500.0,9.181e-05,2]
[347067682,1735489832527,-500.0,9.181e-05,2]
[347067684,1735489832537,-500.0,9.181e-05,2]
[347067685,1735489832546,-500.0,9.181e-05,2]
[347067687,1735489832556,-500.0,9.181e-05,2]
[347067689,1735489832565,-505.1481969,9.181e-05,2]
[347067691,1735489832575,-500.0,9.181e-05,2]
[347067695,1735489832593,-500.0,9.181e-05,2]
[347067697,1735489832604,-500.0,9.181e-05,2]
[347067699,1735489832614,-500.0,9.181e-05,2]
[347067701,1735489832624,-500.0,9.181e-05,2]
[347067703,1735489832633,-500.0,9.181e-05,2]
[347067705,1735489832643,-500.0,9.181e-05,2]
[347067707,1735489832652,-500.0,9.181e-05,2]
[347067709,1735489832662,-568.1,9.181e-05,2]
[347067711,1735489832671,-500.0,9.181e-05,2]
[347067713,1735489832680,-500.0,9.181e-05,2]
[347067715,1735489832690,-500.0,9.181e-05,2]
[347067717,1735489832700,-500.0,9.181e-05,2]
[347067719,1735489832709,-500.0,9.181e-05,2]
[347067721,1735489832718,-500.0,9.181e-05,2]
[347067723,1735489832728,-500.0,9.181e-05,2]
[347067725,1735489832744,-500.0,9.181e-05,2]
[347067727,1735489832754,-500.0,9.181e-05,2]
[347067729,1735489832763,-500.0,9.181e-05,2]
[347067731,1735489832773,-500.0,9.181e-05,2]
[347067733,1735489832782,-500.0,9.181e-05,2]
[347067735,1735489832792,-500.0,9.181e-05,2]
[347067737,1735489832801,-500.0,9.181e-05,2]
[347067739,1735489832811,-272.71,9.181e-05,2]
[347067741,1735489832821,-500.0,9.181e-05,2]
[347067743,1735489832830,-449.33,9.181e-05,2]
[347067745,1735489832840,-500.0,9.181e-05,2]
[347067747,1735489832850,-500.0,9.181e-05,2]
[347067749,1735489832860,-500.0,9.181e-05,2]
[347067751,1735489832870,-500.0,9.181e-05,2]
[347067753,1735489832879,-500.0,9.181e-05,2]
[347067754,1735489832889,-500.0,9.181e-05,2]
[347067756,1735489832899,-500.0,9.181e-05,2]
[347067758,1735489832908,-500.0,9.181e-05,2]
[347067760,1735489832918,-500.0,9.181e-05,2]
[347067762,1735489832927,-500.0,9.181e-05,2]
[347067763,1735489832937,-500.0,9.181e-05,2]
[347067764,1735489832946,-500.0,9.181e-05,2]
[347067765,1735489832956,-500.0,9.181e-05,2]
[347067766,1735489832966,-500.0,9.181e-05,2]
[347067767,1735489832975,-500.0,9.181e-05,2]
[347067768,1735489832989,-500.0,9.182e-05,2]
[347067769,1735489832999,-501.62696368,9.182e-05,2]
[347067770,1735489833009,-585.87511532,9.182e-05,2]
[347067771,1735489833019,-500.0,9.182e-05,2]
[347067772,1735489833029,-503.26527972,9.182e-05,2]
[347067773,1735489833039,-500.0,9.182e-05,2]
[347067774,1735489833050,-500.0,9.182e-05,2]
[347067775,1735489833061,-500.0,9.182e-05,2]
[347067776,1735489833071,-500.0,9.182e-05,2]
[347067777,1735489833081,-503.17145217,9.182e-05,2]
[347067778,1735489833092,-505.0192128,9.182e-05,2]
[347067779,1735489833102,-507.90531955,9.182e-05,2]
[347067780,1735489833113,-500.0,9.182e-05,2]
[347067781,1735489833123,-503.08783653,9.182e-05,2]
[347067782,1735489833134,-500.0,9.182e-05,2]
[347067783,1735489833144,-500.0,9.182e-05,2]
[347067784,1735489833154,-599.14653352,9.182e-05,2]
[347067785,1735489833165,-165.32702852,9.182e-05,2]
[347067786,1735489833174,-32.3884827,9.182e-05,2]
[347067787,1735489833188,-421.0770083,9.182e-05,2]
[347067788,1735489833198,-500.0,9.182e-05,2]
[347067789,1735489833208,-502.48432463,9.182e-05,2]
[347067790,1735489833218,-500.0,9.182e-05,2]
[347067791,1735489833228,-505.4987076,9.182e-05,2]
[347067792,1735489833241,-502.63721505,9.182e-05,2]
[347067793,1735489833377,-535.16398584,9.182e-05,2]
[347067794,1735489833387,-500.0,9.182e-05,2]
[347067795,1735489833397,-502.04337237,9.182e-05,2]
[347067796,1735489833406,-500.0,9.182e-05,2]
[347067797,1735489833416,-335.64295817,9.182e-05,2]
[347067798,1735489833427,-166.63629808,9.182e-05,2]
[347067799,1735489833437,-504.53542742,9.182e-05,2]
[347067800,1735489833446,-527.97128203,9.182e-05,2]
[347067801,1735489833456,-506.63747474,9.182e-05,2]
[347067802,1735489833466,-278.31624683,9.182e-05,2]
[347067803,1735489833475,-500.0,9.182e-05,2]
[347067804,1735489833486,-503.32169023,9.182e-05,2]
[347067805,1735489833495,-503.9449655,9.182e-05,2]
[347067806,1735489833505,-500.0,9.182e-05,2]
[347067807,1735489833515,-504.3404802,9.182e-05,2]
[347067808,1735489833525,-500.0,9.182e-05,2]
[347067809,1735489833535,-500.0,9.182e-05,2]
[347067810,1735489833544,-500.0,9.182e-05,2]
[347067811,1735489833554,-500.0,9.182e-05,2]
[347067812,1735489833563,-500.0,9.182e-05,2]
[347067813,1735489833573,-500.0,9.182e-05,2]
[347067814,1735489833582,-500.0,9.182e-05,2]
[347067815,1735489833592,-500.0,9.182e-05,2]
[347067816,1735489833602,-472.07496135,9.182e-05,2]
[347067817,1735489833611,-500.0,9.182e-05,2]
[347067818,1735489833621,-500.0,9.182e-05,2]
[347067819,1735489833630,-500.0,9.182e-05,2]
[347067820,1735489833640,-500.0,9.182e-05,2]
[347067821,1735489833650,-500.0,9.182e-05,2]
[347067822,1735489833659,-500.0,9.182e-05,2]
[347067823,1735489833669,-500.0,9.182e-05,2]
[347067824,1735489833679,-500.0,9.182e-05,2]
[347067825,1735489833689,-500.0,9.182e-05,2]
[347067826,1735489833698,-300.36621339,9.182e-05,2]
[347067827,1735489833708,-500.0,9.182e-05,2]
[347067828,1735489833718,-500.0,9.182e-05,2]
[347067829,1735489833727,-500.0,9.182e-05,2]
[347067830,1735489833741,-500.0,9.182e-05,2]
[347067831,1735489833751,-500.0,9.182e-05,2]
[347067832,1735489833761,-500.0,9.182e-05,2]
[347067833,1735489833770,-502.82749129,9.182e-05,2]
[347067834,1735489833781,-500.0,9.182e-05,2]
[347067835,1735489833791,-500.0,9.182e-05,2]
[347067836,1735489833801,-500.0,9.182e-05,2]
[347067837,1735489833810,-243.22659194,9.182e-05,2]
[347067838,1735489833820,-500.0,9.182e-05,2]
[347067839,1735489833830,-425.18890014,9.182e-05,2]
[347067840,1735489833840,-228.46,9.182e-05,2]
[347067841,1735489833850,-500.0,9.182e-05,2]
[347067842,1735489833860,-500.0,9.182e-05,2]
[347067843,1735489833869,-500.0,9.182e-05,2]
[347067844,1735489833879,-500.0,9.182e-05,2]
[347067845,1735489833888,-500.0,9.182e-05,2]
[347067846,1735489833898,-500.0,9.182e-05,2]
[347067847,1735489833908,-500.0,9.182e-05,2]
[347067848,1735489833917,-500.0,9.182e-05,2]
[347067849,1735489833927,-500.0,9.182e-05,2]
[347067850,1735489833936,-500.0,9.182e-05,2]
[347067851,1735489833945,-500.0,9.182e-05,2]
[347067852,1735489833954,-500.0,9.182e-05,2]
[347067853,1735489833964,-103.71520848,9.182e-05,2]
[347067890,1735489838170,-397.17775068,9.182e-05,2]
[347067892,1735489838180,-280.23244446,9.182e-05,2]
[347067903,1735489838281,-219.76755554,9.182e-05,2]
[347067905,1735489838292,-500.0,9.182e-05,2]
[347067907,1735489838301,-500.0,9.182e-05,2]
[347067909,1735489838311,-500.0,9.182e-05,2]
[347067911,1735489838320,-365.4148835,9.182e-05,2]
[347067913,1735489838330,-500.0,9.182e-05,2]
[347067915,1735489838340,-500.43488682,9.182e-05,2]
[347067918,1735489838350,-500.0,9.182e-05,2]
[347067920,1735489838360,-505.70545399,9.182e-05,2]
[347067922,1735489838369,-500.0,9.182e-05,2]
[347067924,1735489838379,-500.0,9.182e-05,2]
[347067926,1735489838389,-502.40575722,9.182e-05,2]
[347067928,1735489838398,-500.0,9.182e-05,2]
[347067930,1735489838407,-500.0,9.182e-05,2]
[347067932,1735489838417,-501.08648061,9.182e-05,2]
[347067933,1735489838427,-500.0,9.182e-05,2]
[347067936,1735489838436,-500.0,9.182e-05,2]
[347067938,1735489838446,-500.0,9.182e-05,2]
[347067940,1735489838455,-500.0,9.182e-05,2]
[347067942,1735489838465,-500.0,9.182e-05,2]
[347067944,1735489838474,-500.0,9.183e-05,2]
[347067945,1735489838485,-500.0,9.183e-05,2]
[347067948,1735489838496,-500.0,9.183e-05,2]
[347067950,1735489838506,-500.0,9.183e-05,2]
[347067951,1735489838517,-500.0,9.183e-05,2]
[347067953,1735489838527,-500.0,9.183e-05,2]
[347067956,1735489838536,-500.0,9.183e-05,2]
[347067958,1735489838547,-500.0,9.183e-05,2]
[347067960,1735489838558,-500.0,9.183e-05,2]
[347067962,1735489838568,-500.0,9.183e-05,2]
[347067964,1735489838578,-500.0,9.183e-05,2]
[347067966,1735489838588,-500.0,9.183e-05,2]
[347067968,1735489838597,-500.0,9.183e-05,2]
[347067970,1735489838607,-500.0,9.183e-05,2]
[347067972,1735489838617,-502.8409468,9.183e-05,2]
[347067974,1735489838626,-500.0,9.183e-05,2]
[347067976,1735489838635,-500.0,9.183e-05,2]
[347067978,1735489838644,-164.55859237,9.183e-05,2]
[347067980,1735489838653,-500.0,9.183e-05,2]
[347067982,1735489838663,-500.0,9.183e-05,2]
[347067984,1735489838672,-500.0,9.183e-05,2]
[347067986,1735489838681,-500.0,9.183e-05,2]
[347067988,1735489838690,-500.0,9.183e-05,2]
[347067990,1735489838699,-500.0,9.183e-05,2]
[347067991,1735489838708,-500.0,9.183e-05,2]
[347067994,1735489838718,-500.0,9.183e-05,2]
[347067995,1735489838727,-500.0,9.183e-05,2]
[347067997,1735489838739,-500.0,9.183e-05,2]
[347068000,1735489838749,-500.0,9.183e-05,2]
[347068002,1735489838760,-500.0,9.183e-05,2]
[347068004,1735489838769,-500.0,9.183e-05,2]
[347068006,1735489838778,-500.0,9.183e-05,2]
[347068008,1735489838789,-255.64925741,9.183e-05,2]
[347068010,1735489838798,-500.0,9.183e-05,2]
[347068012,1735489838807,-500.0,9.183e-05,2]
[347068014,1735489838817,-500.0,9.183e-05,2]
[347068016,1735489838827,-551.1,9.183e-05,2]
[347068018,1735489838836,-500.0,9.183e-05,2]
[347068020,1735489838845,-500.0,9.183e-05,2]
[347068022,1735489838854,-500.0,9.183e-05,2]
[347068024,1735489838864,-184.93,9.183e-05,2]
[347068026,1735489838874,-408.95633005,9.183e-05,2]
[347068028,1735489838883,-500.0,9.183e-05,2]
[347068030,1735489838892,-501.25993747,9.183e-05,2]
[347068032,1735489838902,-500.0,9.183e-05,2]
[347068034,1735489838912,-500.0,9.183e-05,2]
[347068036,1735489838922,-500.0,9.183e-05,2]
[347068038,1735489838931,-332.66507842,9.183e-05,2]
[347068040,1735489838941,-500.0,9.183e-05,2]
[347068042,1735489838950,-500.24047302,9.184e-05,2]
[347068044,1735489838960,-500.0,9.184e-05,2]
[347068046,1735489838970,-567.31584573,9.184e-05,2]
[347068048,1735489838979,-500.0,9.184e-05,2]
[347068050,1735489838989,-503.45182854,9.184e-05,2]
[347068052,1735489838998,-500.0,9.184e-05,2]
[347068054,1735489839007,-500.0,9.184e-05,2]
[347068056,1735489839016,-500.0,9.184e-05,2]
[347068058,1735489839026,-500.0,9.184e-05,2]
[347068060,1735489839035,-500.0,9.184e-05,2]
[347068062,1735489839044,-500.0,9.184e-05,2]
[347068064,1735489839054,-512.78180776,9.184e-05,2]
[347068066,1735489839063,-500.0,9.184e-05,2]
[347068068,1735489839072,-501.80392648,9.184e-05,2]
[347068070,1735489839081,-500.0,9.184e-05,2]
[347068072,1735489839090,-500.0,9.184e-05,2]
[347068074,1735489839100,-500.0,9.184e-05,2]
[347068076,1735489839109,-500.0,9.184e-05,2]
[347068078,1735489839119,-500.0,9.184e-05,2]
[347068080,1735489839129,-500.0,9.184e-05,2]
[347068082,1735489839138,-500.0,9.184e-05,2]
[347068084,1735489839147,-188.0,9.184e-05,2]
[347068086,1735489839157,-502.45470727,9.184e-05,2]
[347068088,1735489839166,-500.0,9.184e-05,2]
[347068090,1735489839175,-500.0,9.184e-05,2]
[347068092,1735489839185,-503.20464633,9.184e-05,2]
[347068094,1735489839195,-502.30311038,9.184e-05,2]
[347068096,1735489839205,-503.39479889,9.184e-05,2]
[347068098,1735489839215,-506.74452589,9.184e-05,2]
[347068100,1735489839223,-500.0,9.184e-05,2]
[347068102,1735489839233,-500.0,9.184e-05,2]
[347068104,1735489839242,-500.0,9.184e-05,2]
[347068106,1735489839251,-501.49091669,9.184e-05,2]
[347068108,1735489839260,-500.0,9.184e-05,2]
[347068110,1735489839269,-500.0,9.184e-05,2]
[347068112,1735489839279,-392.97504851,9.184e-05,2]
[347068115,1735489839291,-107.02495149,9.184e-05,2]
[347068117,1735489839301,-500.0,9.184e-05,2]
[347068118,1735489839310,-500.0,9.184e-05,2]
[347068121,1735489839319,-500.0,9.184e-05,2]
[347068122,1735489839328,-500.0,9.184e-05,2]
[347068124,1735489839337,-500.0,9.184e-05,2]
[347068126,1735489839347,-500.0,9.184e-05,2]
[347068128,1735489839357,-502.52809694,9.184e-05,2]
[347068130,1735489839366,-502.94474416,9.184e-05,2]
[347068132,1735489839375,-500.0,9.184e-05,2]
[347068134,1735489839385,-500.0,9.184e-05,2]
[347068136,1735489839395,-500.0,9.184e-05,2]
[347068138,1735489839404,-500.0,9.184e-05,2]
[347068140,1735489839414,-267.91462043,9.184e-05,2]
[347068142,1735489839424,-500.0,9.184e-05,2]
[347068144,1735489839433,-500.0,9.184e-05,2]
[347068146,1735489839444,-500.0,9.184e-05,2]
[347068148,1735489839453,-500.0,9.184e-05,2]
[347068150,1735489839463,-500.0,9.184e-05,2]
[347068152,1735489839473,-500.0,9.184e-05,2]
[347068155,1735489839483,-505.36686549,9.184e-05,2]
[347068156,1735489839493,-626.5080997,9.184e-05,2]
[347068159,1735489839503,-500.0,9.184e-05,2]
[347068160,1735489839513,-502.47722534,9.184e-05,2]
[347068162,1735489839522,-503.43147803,9.184e-05,2]
[347068165,1735489839532,-500.0,9.184e-05,2]
[347068167,1735489839541,-500.0,9.184e-05,2]
[347068169,1735489839551,-500.0,9.184e-05,2]
[347068171,1735489839560,-396.26619645,9.184e-05,2]
[347068173,1735489839572,-103.73380355,9.184e-05,2]
[347068175,1735489839581,-500.0,9.184e-05,2]
[347068186,1735489839590,-500.0,9.184e-05,2]
[347068188,1735489839685,-500.0,9.184e-05,2]
[347068190,1735489839695,-500.0,9.184e-05,2]
[347068193,1735489839705,-150.47083017,9.184e-05,2]
[347068195,1735489839714,-500.0,9.184e-05,2]
[347068197,1735489839723,-500.0,9.184e-05,2]
[347068198,1735489839732,-500.0,9.184e-05,2]
[347068201,1735489839746,-396.43296204,9.184e-05,2]
[347068204,1735489839757,-103.56703796,9.184e-05,2]
[347068207,1735489839766,-500.0,9.184e-05,2]
[347068210,1735489839776,-500.0,9.184e-05,2]
[347068212,1735489839786,-500.0,9.185e-05,2]
[347068214,1735489839795,-500.0,9.185e-05,2]
[347068216,1735489839804,-500.0,9.185e-05,2]
[347068218,1735489839815,-500.0,9.185e-05,2]
[347068221,1735489839825,-500.0,9.185e-05,2]
[347068224,1735489839834,-500.0,9.185e-05,2]
[347068226,1735489839843,-500.0,9.185e-05,2]
[347068228,1735489839853,-502.42403459,9.185e-05,2]
[347068230,1735489839862,-500.0,9.186e-05,2]
[347068232,1735489839871,-500.0,9.187e-05,2]
[347068234,1735489839880,-500.0,9.188e-05,2]
[347068236,1735489839890,-500.0,9.193e-05,2]
[347068238,1735489839900,-500.0,9.276e-05,2]
[347068240,1735489839909,-26.39271245,9.276e-05,2]
[347068242,1735489839921,-458.4899999,9.276e-05,2]
[347068244,1735489839932,-84.7542667,9.276e-05,2]
[347068246,1735489839941,-500.0,9.454e-05,2]
[347068248,1735489839951,-500.0,9.455e-05,2]
[347068250,1735489839961,-500.0,9.455e-05,2]
[347068252,1735489839970,-500.0,9.455e-05,2]
[347068254,1735489839979,-500.0,9.455e-05,2]
[347068256,1735489839990,-500.0,9.455e-05,2]
[347068258,1735489839998,-500.0,9.455e-05,2]
[347068260,1735489840008,-500.0,9.455e-05,2]
[347068262,1735489840017,-500.0,9.455e-05,2]
[347068264,1735489840027,-500.0,9.455e-05,2]
[347068267,1735489840037,-500.0,9.455e-05,2]
[347068269,1735489840046,-500.0,9.455e-05,2]
[347068271,1735489840056,-500.0,9.455e-05,2]
[347068273,1735489840065,-500.0,9.455e-05,2]
[347068275,1735489840074,-500.0,9.455e-05,2]
[347068277,1735489840084,-500.0,9.455e-05,2]
[347068279,1735489840093,-500.0,9.455e-05,2]